{"text_format":"1","workbook":"xlsx","n_sheets":12,"sheets":["Index","General Info","Scrutinizer Details","Voting Results","Resolution","Resolution (1)","Resolution (2)","Resolution (3)","Resolution (4)","Resolution (5)","Taxonomy","TextBlock"],"not_rendered":{"charts":0,"images":4,"macros":1,"external_links":0,"defined_names":1,"comments":0,"pivot_tables":0},"unopened":[],"bounds":{"document_bytes":16777216,"sheet_cells":100000,"rows_first":2000,"rows_last":500,"rows_between":2000,"halvings":0,"cell_chars":16384,"cell_head_chars":4096},"cells_cut":0,"cells_raw":0,"read":"whole","date_system":"1900"}

{"sheet":"Index","index":0,"n_rows":49,"n_cols":10,"rows_kept":49,"cut":false,"hidden":false,"merged":[[20,3,20,9],[5,4,5,8],[6,5,6,8],[7,5,7,8],[8,5,8,8],[9,5,9,8],[12,3,12,9],[13,3,13,9],[14,3,14,9],[17,3,17,9],[18,3,18,9],[19,3,19,9],[31,3,31,9],[32,3,32,9],[33,3,33,9],[34,3,34,9],[21,3,21,9],[22,3,22,9],[25,3,25,9],[26,4,26,8],[27,4,27,8],[28,4,28,8],[48,3,48,9],[35,3,35,9],[36,3,36,9],[37,3,37,9],[38,3,38,9],[41,3,41,9],[42,3,42,9],[43,3,43,9],[44,3,44,9],[45,3,45,9],[46,3,46,9],[47,3,47,9]]}
[]
[]
[]
[]
[]
[null,null,null,null,"                                      XBRL Excel Utility"]
[null,null,null,null,"1.","Overview"]
[null,null,null,null,"2.","Before you begin"]
[null,null,null,null,"3.","Index"]
[null,null,null,null,"4.","Steps for Filing - Voting Result Format"]
[]
[]
[null,null,null,"1. Overview"]
[null,null,null,"The excel utility can be used for creating the XBRL/XML file for efiling of Voting Result"]
[null,null,null,"XBRL filling consists of two processes. Firstly generation of XBRL/XML file and upload of generated XBRL/XML file to BSE Listing Center Website (www.listing.bseindia.com) ."]
[]
[]
[null,null,null," 2.  Before you begin"]
[null,null,null,"1. The version of Microsoft Excel in your system should be Microsoft Office Excel 2007 and above."]
[null,null,null,"2. The system should have a file compression software to unzip excel utility file."]
[null,null,null,"3. Make sure that you have downloaded the latest Excel Utility from BSE Website to your local system."]
[null,null,null,"4. Make sure that you have downloaded the Chrome Browser to view report generated from Excel utility"]
[null,null,null,"5. Please enable the Macros (if disabled) as per instructions given in manual, so that all the functionalities of  Excel Utility works fine. Please first go through Enable Macro - Manual attached with zip file."]
[]
[]
[null,null,null,"3. Index "]
[null,null,null,1,"Details of general information about company",null,null,null,null,"General Info"]
[null,null,null,2,"Voting Result By Companies",null,null,null,null,"Voting Results"]
[null,null,null,3,"Voting Result Format ",null,null,null,null,"Resolutions"]
[]
[]
[null,null,null,"4. Steps for Filing Voting Result"]
[null,null,null,"I.  Fill up the data: Navigate to each field of every section in the sheet to provide applicable data in correct format.  (Formats will get reflected while filling data.)  \n   - Use paste special command to paste data from other sheet.\n   - Use \"Home\" button (cntrl + H) to toggle between the sheets."]
[null,null,null,"II. Validating Sheets:  Click on the ''Validate \"  button to ensure that the sheet has been properly filled and also data has been furnished in proper format. If there are some errors on the sheet, excel utility will prompt you about the same."]
[null,null,null,"III. Validate All Sheets:  Click on the ''Home\"  button. And then click on \"Validate All Sheet\" button to ensure that all sheets has been properly filled and validated successfully. If there are some errors on the sheet, excel utility will prompt you about the same and stop validation at the same time. After correction, once again follow the same procedure to validate all sheets."]
[null,null,null,"Excel Utility will not allow you to generate XBRL/XML until you rectify all errors. "]
[null,null,null,"IV. Generate XML :   Excel Utility will not allow you to generate XBRL/XML unless successful validation of all sheet is completed. Now click on 'Generate XML'' to generate XBRL/XML file. \n    - Save the XBRL/XML file in your desired folder in local system. "]
[null,null,null,"V. Generate Report :   Excel Utility will allow you to generate Report. Now click on 'Generate Report'' to generate html report.   \n     - Save the HTML Report file in your desired folder in local system.     \n     - To view HTML Report open \"Chrome Web Browser\" . \n     - To print report in PDF Format, Click on print button and save as PDF. "]
[null,null,null,"VI. Upload XML file to BSE Listing Center: For uploading the XBRL/XML file generated through  Utility, login to BSE Listing Center and upload generated xml file. On Upload screen provide the required information and browse to select XML file and submit the XML."]
[]
[]
[null,null,null,"5. Fill up the data in excel utility"]
[null,null,null,"1. Cells with red fonts indicate mandatory fields. "]
[null,null,null,"2. If mandatory field is left empty, then Utility will not allow you to proceed further for generating XML."]
[null,null,null,"3. You are not allowed to enter data in the Grey Cells."]
[null,null,null,"4. If fields are not applicable to your company then leave it blank. Do not insert Zero unless it is a mandatory field."]
[null,null,null,"5. Data provided must be in correct format, otherwise Utility will not allow you to proceed further for generating XML."]
[null,null,null,"6. Select data from \"Dropdown list\" wherever applicable. "]
[null,null,null,"7. Adding Notes:  Click on \"Add Notes\" button to add notes "]

{"sheet":"General Info","index":1,"n_rows":16,"n_cols":13,"rows_kept":16,"cut":false,"hidden":false,"merged":[[4,4,4,5]]}
[null,null,null,null,null,null,null,null,null,null,null,null,"AGM"]
[null,null,null,null,null,null,null,null,null,null,null,null,"EGM"]
[null,null,null,null,null,null,null,null,null,null,null,null,"Postal Ballot"]
[" ",null,null,null,null,null,null,null,null,null,null,null,"Court Convened Meeting"]
[null,null,null,null,"General information about company"]
[null,null,null,null,"Scrip code",506687]
[null,null,null,null,"NSE Symbol"]
[null,null,null,null,"MSEI Symbol"]
[null,null,null,null,"ISIN"]
[null,null,null,null,"Name of the company","Transpek Industry Limited"]
[null,null,null,null,null,""]
[null,null,null,null,null,""]
[null,null,null,null,"Type of meeting","AGM"]
[null,null,null,null,"Date of the meeting / Date of declaration of results (in case of Postal Ballot)","07-08-2018"]
[null,null,null,null,"Start time of the meeting","04:00 PM"]
[null,null,null,null,"End time of the meeting","06:00 PM"]

{"sheet":"Scrutinizer Details","index":2,"n_rows":14,"n_cols":22,"rows_kept":14,"cut":false,"hidden":false,"merged":[[7,4,7,5]]}
[null,null,null,null,null,null,null,null,null,null,null,null,null,null,null,null,null,"Advocate","CA","CS","CWA","Others"]
[]
[]
[]
[]
[]
[]
[null,null,null,null,"Scrutinizer Details"]
[null,null,null,null,"Name of the Scrutinizer","Vijay L. Vyas"]
[null,null,null,null,"Firms Name","Vijay L. Vyas"]
[null,null,null,null,"Qualification","CS"]
[null,null,null,null,"Membership Number","1602"]
[null,null,null,null,"Date of Board Meeting in which appointed","23-05-2018"]
[null,null,null,null,"Date of Issuance of Report to the company","08-08-2018"]

{"sheet":"Voting Results","index":3,"n_rows":24,"n_cols":18,"rows_kept":24,"cut":false,"hidden":false,"merged":[[5,3,5,4],[8,3,8,4],[11,3,11,4]]}
[null,null,null,null,null,null,null,null,null,null,null,null,"Ordinary","Yes",null,"AGM"]
[null,null,null,null,null,null,null,null,null,null,null,null,"Special","No",null,"EGM"]
[null,null,null,null,null,null,null,null,null,null,null,null,null,null,null,"Postal Ballot"]
[null,null,null,null,null,null,null,null,null,null,null,null,null,null,0,"Court Convened Meeting"]
[null,null,null,null,null,null,null,null,null,null,null,null,null,null,1]
[null,null,null,"Voting results",null,null,null,null,null,null,null,null,null,null,2]
[null,null,null,"Record date","31-07-2018",null,null,null,null,null,null,null,null,null,3,null,null,"Date of record"]
[null,null,null,"Total number of shareholders on record date",8716,null,null,null,null,null,null,null,null,null,4,null,null,"Total number of shareholders on record date"]
[null,null,null,"No. of shareholders present in the meeting either in person or through proxy",null,null,null,null,null,null,null,null,null,null,5]
[null,null,null,"a) Promoters and Promoter group",7,null,null,null,null,null,null,null,null,null,6,null,null,"Number of promoters present in the meeting either in person or through proxy"]
[null,null,null,"b) Public",67,null,null,null,null,null,null,null,null,null,7,null,null,"Number of public shareholders present in the meeting either in person or through proxy"]
[null,null,null,"No. of shareholders attended the meeting through video conferencing",null,null,null,null,null,null,null,null,null,null,8]
[null,null,null,"a) Promoters and Promoter group",0,null,null,null,null,null,null,null,null,null,9,null,null,"Number of promoters attended the meeting through video conferencing"]
[null,null,null,"b) Public",0,null,null,null,null,null,null,null,null,null,10,null,null,"Number of public shareholders attended the meeting through video conferencing"]
[null,null,null,"No. of resolution passed in the meeting",5,null,null,null,null,null,null,null,null,null,11,null,null,"Number of resolution passed in the meeting"]
[null,null,null,"Disclosure of notes on voting results",null,null,null,null,null,null,null,null,null,null,12,null,null,"Disclosure of notes on voting results"]
[null,null,null,null,null,null,null,null,null,null,null,null,null,null,13]
[null,null,null,null,null,null,null,null,null,null,null,null,null,null,14]
[null,null,null,null,null,null,null,null,null,null,null,null,null,null,15]
[null,null,null,null,null,null,null,null,null,null,null,null,null,null,16]
[null,null,null,null,null,null,null,null,null,null,null,null,null,null,17]
[null,null,null,null,null,null,null,null,null,null,null,null,null,null,18]
[null,null,null,null,null,null,null,null,null,null,null,null,null,null,19]
[null,null,null,null,null,null,null,null,null,null,null,null,null,null,20]

{"sheet":"Resolution","index":4,"n_rows":35,"n_cols":25,"rows_kept":35,"cut":false,"hidden":true,"merged":[[7,4,7,12],[12,4,12,5],[13,4,16,4],[17,4,20,4],[21,4,24,4],[13,6,15,6],[17,6,19,6],[21,6,23,6],[27,4,27,10],[27,11,27,12],[26,4,26,10],[26,11,26,12],[8,8,8,12],[9,8,9,12],[10,8,10,12],[8,4,8,7],[9,4,9,7],[10,4,10,7],[30,4,30,6],[31,4,31,5],[32,4,32,5],[33,4,33,5],[34,4,34,5]]}
[null,null,null,null,null,null,null,null,null,null,null,null,null,null,null,null,null,null,"Ordinary","Yes"]
[null,null,null,null,null,null,null,null,null,null,null,null,null,null,null,null,null,null,"Special","No"]
[]
[]
[]
[]
[]
[null,null,null,null,"Resolution"]
[null,null,null,null,"Resolution required: (Ordinary / Special)",null,null,null,null,null,null,null,null,null,null,null,null,"Type of resolution"]
[null,null,null,null,"Whether promoter/promoter group are interested in the agenda/resolution?",null,null,null,null,null,null,null,null,null,null,null,null,"Whether promoter or promoter group are interested in the agenda or resolution"]
[null,null,null,null,"Description of resolution considered",null,null,null,null,null,null,null,null,null,null,null,null,"Description of resolution considered"]
[null,null,null,null,"Category","Mode of voting","No. of shares held                 ","No. of votes polled               ","% of Votes polled on outstanding shares ","No. of votes – in favour","No. of votes – against","% of votes in favour on votes polled ","% of Votes against on votes polled "]
[null,null,null,null,null,null,"(1)","(2)","(3)=[(2)/(1)]*100 ","(4)","(5)","(6)=[(4)/(2)]*100","(7)=[(5)/(2)]*100"]
[null,null,null,null,"Promoter and Promoter Group","E-Voting",null,null,{"$f":"(IF($G$14=\"\",\"\",IF(G$14=0,\"0\",IF(COUNT(H14,$G$14),IFERROR(IF((H14)=\"\",\"\",ROUND(H14/$G$14*100,4)),\"\"),\"\"))))","v":""},null,null,{"$f":"(IF(I14=\"\",\"\",IF(I14=0,\"0\",IF(COUNT(J14,H14),IFERROR(ROUND(J14/H14*100,4),0),\"\"))))","v":""},{"$f":"(IF(I14=\"\",\"\",IF(I14=0,\"0\",IF(COUNT(K14,H14),IFERROR(ROUND(K14/H14*100,4),0),\"\"))))","v":""},null,null,null,null,null,null,null,null,null,{"$f":"IF($G$14=\"\",\"\",IF($G$14>=H14,H14,\"\"))","v":""},{"$f":"IF(H14=\"\",\"\",IF(H14>=J14,J14,\"\"))","v":""},{"$f":"IF(H14=\"\",\"\",IF(H14>=K14,K14,\"\"))","v":""}]
[null,null,null,null,null,"Poll",null,null,{"$f":"(IF($G$14=\"\",\"\",IF(G$14=0,\"0\",IF(COUNT(H15,$G$14),IFERROR(IF((H15)=\"\",\"\",ROUND(H15/$G$14*100,4)),\"\"),\"\"))))","v":""},null,null,{"$f":"(IF(I15=\"\",\"\",IF(I15=0,\"0\",IF(COUNT(J15,H15),IFERROR(ROUND(J15/H15*100,4),0),\"\"))))","v":""},{"$f":"(IF(I15=\"\",\"\",IF(I15=0,\"0\",IF(COUNT(K15,H15),IFERROR(ROUND(K15/H15*100,4),0),\"\"))))","v":""},null,null,null,null,null,null,null,null,null,{"$f":"IF($G$14=\"\",\"\",IF($G$14>=H15,H15,\"\"))","v":""},{"$f":"IF(H15=\"\",\"\",IF(H15>=J15,J15,\"\"))","v":""},{"$f":"IF(H15=\"\",\"\",IF(H15>=K15,K15,\"\"))","v":""}]
[null,null,null,null,null,"Postal Ballot (if applicable)",null,null,"",null,null,"","",null,null,null,null,null,null,null,null,null,"","",""]
[null,null,null,null,null,"Total",{"$f":"+IF(COUNT(G14),SUM(G14),\"\")","v":""},{"$f":"+IF(COUNT(H14:H16),ROUND(SUM(H14:H16),2),\"\")","v":""},{"$f":"(IF(COUNT(H17,G17),IFERROR(ROUND(H17/G17*100,4),0),\"\"))","v":""},{"$f":"+IF(COUNT(J14:J16),ROUND(SUM(J14:J16),2),\"\")","v":""},"",{"$f":"(IF(COUNT(J17,H17),IFERROR(ROUND(J17/H17*100,4),0),\"\"))","v":""},{"$f":"(IF(COUNT(K17,H17),IFERROR(ROUND(K17/H17*100,4),0),\"\"))","v":""}]
[null,null,null,null,"Public- Institutions","E-Voting",null,null,{"$f":"(IF($G$18=\"\",\"\",IF(G$18=0,\"0\",IF(COUNT(H18,$G$18),IFERROR(IF((H18)=\"\",\"\",ROUND(H18/$G$18*100,4)),\"\"),\"\"))))","v":""},null,null,{"$f":"(IF(I18=\"\",\"\",IF(I18=0,\"0\",IF(COUNT(J18,H18),IFERROR(ROUND(J18/H18*100,4),0),\"\"))))","v":""},{"$f":"(IF(I18=\"\",\"\",IF(I18=0,\"0\",IF(COUNT(K18,H18),IFERROR(ROUND(K18/H18*100,4),0),\"\"))))","v":""},null,null,null,null,null,null,null,null,null,{"$f":"IF($G$18=\"\",\"\",IF($G$18>=H18,H18,\"\"))","v":""},{"$f":"IF(H18=\"\",\"\",IF(H18>=J18,J18,\"\"))","v":""},{"$f":"IF(H18=\"\",\"\",IF(H18>=K18,K18,\"\"))","v":""}]
[null,null,null,null,null,"Poll",null,null,{"$f":"(IF($G$18=\"\",\"\",IF(G$18=0,\"0\",IF(COUNT(H19,$G$18),IFERROR(IF((H19)=\"\",\"\",ROUND(H19/$G$18*100,4)),\"\"),\"\"))))","v":""},null,null,{"$f":"(IF(I19=\"\",\"\",IF(I19=0,\"0\",IF(COUNT(J19,H19),IFERROR(ROUND(J19/H19*100,4),0),\"\"))))","v":""},{"$f":"(IF(I19=\"\",\"\",IF(I19=0,\"0\",IF(COUNT(K19,H19),IFERROR(ROUND(K19/H19*100,4),0),\"\"))))","v":""},null,null,null,null,null,null,null,null,null,{"$f":"IF($G$18=\"\",\"\",IF($G$18>=H19,H19,\"\"))","v":""},"",""]
[null,null,null,null,null,"Postal Ballot (if applicable)",null,null,"",null,null,"","",null,null,null,null,null,null,null,null,null,"","",""]
[null,null,null,null,null,"Total",{"$f":"+IF(COUNT(G18),SUM(G18),\"\")","v":""},{"$f":"+IF(COUNT(H18:H20),ROUND(SUM(H18:H20),2),\"\")","v":""},{"$f":"(IF(COUNT(H21,G21),IFERROR(ROUND(H21/G21*100,4),0),\"\"))","v":""},{"$f":"+IF(COUNT(J18:J20),ROUND(SUM(J18:J20),2),\"\")","v":""},{"$f":"+IF(COUNT(K18:K20),ROUND(SUM(K18:K20),2),\"\")","v":""},"",""]
[null,null,null,null,"Public- Non Institutions","E-Voting",null,null,{"$f":"(IF($G$22=\"\",\"\",IF(G$22=0,\"0\",IF(COUNT(H22,$G$22),IFERROR(IF((H22)=\"\",\"\",ROUND(H22/$G$22*100,4)),\"\"),\"\"))))","v":""},null,null,{"$f":"(IF(I22=\"\",\"\",IF(I22=0,\"0\",IF(COUNT(J22,H22),IFERROR(ROUND(J22/H22*100,4),0),\"\"))))","v":""},{"$f":"(IF(I22=\"\",\"\",IF(I22=0,\"0\",IF(COUNT(K22,H22),IFERROR(ROUND(K22/H22*100,4),0),\"\"))))","v":""},null,null,null,null,null,null,null,null,null,{"$f":"IF($G$22=\"\",\"\",IF($G$22>=H22,H22,\"\"))","v":""},{"$f":"IF(H22=\"\",\"\",IF(H22>=J22,J22,\"\"))","v":""},{"$f":"IF(H22=\"\",\"\",IF(H22>=K22,K22,\"\"))","v":""}]
[null,null,null,null,null,"Poll",null,null,{"$f":"(IF($G$22=\"\",\"\",IF(G$22=0,\"0\",IF(COUNT(H23,$G$22),IFERROR(IF((H23)=\"\",\"\",ROUND(H23/$G$22*100,4)),\"\"),\"\"))))","v":""},null,null,{"$f":"(IF(I23=\"\",\"\",IF(I23=0,\"0\",IF(COUNT(J23,H23),IFERROR(ROUND(J23/H23*100,4),0),\"\"))))","v":""},{"$f":"(IF(I23=\"\",\"\",IF(I23=0,\"0\",IF(COUNT(K23,H23),IFERROR(ROUND(K23/H23*100,4),0),\"\"))))","v":""},null,null,null,null,null,null,null,null,null,{"$f":"IF($G$22=\"\",\"\",IF($G$22>=H23,H23,\"\"))","v":""},"",""]
[null,null,null,null,null,"Postal Ballot (if applicable)",null,null,"",null,null,"","",null,null,null,null,null,null,null,null,null,"","",""]
[null,null,null,null,null,"Total",{"$f":"+IF(COUNT(G22),SUM(G22),\"\")","v":""},{"$f":"+IF(COUNT(H22:H24),ROUND(SUM(H22:H24),2),\"\")","v":""},{"$f":"(IF(COUNT(H25,G25),IFERROR(ROUND(H25/G25*100,4),0),\"\"))","v":""},{"$f":"+IF(COUNT(J22:J24),ROUND(SUM(J22:J24),2),\"\")","v":""},{"$f":"+IF(COUNT(K22:K24),ROUND(SUM(K22:K24),2),\"\")","v":""},"",""]
[null,null,null,null,"Total","Total",{"$f":"+IF(COUNT(G17,G21,G25),ROUND(SUM(G17,G21,G25),2),\"\")","v":""},{"$f":"+IF(COUNT(H17,H21,H25),ROUND(SUM(H17,H21,H25),2),\"\")","v":""},{"$f":"(IF(COUNT(H26,G26),IFERROR(ROUND(H26/G26*100,4),0),\"\"))","v":""},"","","",""]
[null,null,null,null,"Whether resolution is Pass or Not.",null,null,null,null,null,null,null,null,null,null,null,null,"Whether resolution is passed"]
[null,null,null,null,"Disclosure of notes on resolution",null,null,null,null,null,null,null,null,null,null,null,null,"Disclosure of notes on voting resolution"]
[]
[null,null,null,null,"* this fields are optional"]
[null,null,null,null,"Details of Invalid Votes"]
[null,null,null,null,"Category",null,"No. of Votes"]
[null,null,null,null,"Promoter and Promoter Group"]
[null,null,null,null,"Public Insitutions"]
[null,null,null,null,"Public - Non Insitutions"]

{"sheet":"Resolution (1)","index":5,"n_rows":35,"n_cols":25,"rows_kept":35,"cut":false,"hidden":false,"merged":[[21,4,24,4],[21,6,23,6],[7,4,7,12],[8,4,8,7],[8,8,8,12],[9,4,9,7],[9,8,9,12],[10,4,10,7],[10,8,10,12],[12,4,12,5],[13,4,16,4],[13,6,15,6],[17,4,20,4],[17,6,19,6],[32,4,32,5],[33,4,33,5],[34,4,34,5],[26,4,26,10],[26,11,26,12],[27,4,27,10],[27,11,27,12],[30,4,30,6],[31,4,31,5]]}
[null,null,null,null,null,null,null,null,null,null,null,null,null,null,null,null,null,null,"Ordinary","Yes"]
[null,null,null,null,null,null,null,null,null,null,null,null,null,null,null,null,null,null,"Special","No"]
[]
[]
[]
[]
[]
[null,null,null,null,"Resolution (1)"]
[null,null,null,null,"Resolution required: (Ordinary / Special)",null,null,null,"Ordinary",null,null,null,null,null,null,null,null,"Type of resolution"]
[null,null,null,null,"Whether promoter/promoter group are interested in the agenda/resolution?",null,null,null,"No",null,null,null,null,null,null,null,null,"Whether promoter or promoter group are interested in the agenda or resolution"]
[null,null,null,null,"Description of resolution considered",null,null,null,"To Receive, Consider and Adopt the Standalone & Consolidated Audited Financial Statements of the Company for the year ended 31st March, 2018, the reports of the Board of Directors and Auditors thereon.",null,null,null,null,null,null,null,null,"Description of resolution considered"]
[null,null,null,null,"Category","Mode of voting","No. of shares held                 ","No. of votes polled               ","% of Votes polled on outstanding shares ","No. of votes – in favour","No. of votes – against","% of votes in favour on votes polled ","% of Votes against on votes polled "]
[null,null,null,null,null,null,"(1)","(2)","(3)=[(2)/(1)]*100 ","(4)","(5)","(6)=[(4)/(2)]*100","(7)=[(5)/(2)]*100"]
[null,null,null,null,"Promoter and Promoter Group","E-Voting",3085552,3080547,{"$f":"(IF($G$14=\"\",\"\",IF(G$14=0,\"0\",IF(COUNT(H14,$G$14),IFERROR(IF((H14)=\"\",\"\",ROUND(H14/$G$14*100,4)),\"\"),\"\"))))","v":99.837800000000001},3080547,0,{"$f":"(IF(I14=\"\",\"\",IF(I14=0,\"0\",IF(COUNT(J14,H14),IFERROR(ROUND(J14/H14*100,4),0),\"\"))))","v":100},{"$f":"(IF(I14=\"\",\"\",IF(I14=0,\"0\",IF(COUNT(K14,H14),IFERROR(ROUND(K14/H14*100,4),0),\"\"))))","v":0},null,null,null,null,null,null,null,null,null,{"$f":"IF($G$14=\"\",\"\",IF($G$14>=H14,H14,\"\"))","v":3080547},{"$f":"IF(H14=\"\",\"\",IF(H14>=J14,J14,\"\"))","v":3080547},{"$f":"IF(H14=\"\",\"\",IF(H14>=K14,K14,\"\"))","v":0}]
[null,null,null,null,null,"Poll",null,5005,{"$f":"(IF($G$14=\"\",\"\",IF(G$14=0,\"0\",IF(COUNT(H15,$G$14),IFERROR(IF((H15)=\"\",\"\",ROUND(H15/$G$14*100,4)),\"\"),\"\"))))","v":0.16220000000000001},5005,0,{"$f":"(IF(I15=\"\",\"\",IF(I15=0,\"0\",IF(COUNT(J15,H15),IFERROR(ROUND(J15/H15*100,4),0),\"\"))))","v":100},{"$f":"(IF(I15=\"\",\"\",IF(I15=0,\"0\",IF(COUNT(K15,H15),IFERROR(ROUND(K15/H15*100,4),0),\"\"))))","v":0},null,null,null,null,null,null,null,null,null,{"$f":"IF($G$14=\"\",\"\",IF($G$14>=H15,H15,\"\"))","v":5005},{"$f":"IF(H15=\"\",\"\",IF(H15>=J15,J15,\"\"))","v":5005},{"$f":"IF(H15=\"\",\"\",IF(H15>=K15,K15,\"\"))","v":0}]
[null,null,null,null,null,"Postal Ballot (if applicable)",null,0,0,0,0,"0","0",null,null,null,null,null,null,null,null,null,0,0,0]
[null,null,null,null,null,"Total",{"$f":"+IF(COUNT(G14),SUM(G14),\"\")","v":3085552},{"$f":"+IF(COUNT(H14:H16),ROUND(SUM(H14:H16),2),\"\")","v":3085552},{"$f":"(IF(COUNT(H17,G17),IFERROR(ROUND(H17/G17*100,4),0),\"\"))","v":100},{"$f":"+IF(COUNT(J14:J16),ROUND(SUM(J14:J16),2),\"\")","v":3085552},0,{"$f":"(IF(COUNT(J17,H17),IFERROR(ROUND(J17/H17*100,4),0),\"\"))","v":100},{"$f":"(IF(COUNT(K17,H17),IFERROR(ROUND(K17/H17*100,4),0),\"\"))","v":0}]
[null,null,null,null,"Public- Institutions","E-Voting",0,0,{"$f":"(IF($G$18=\"\",\"\",IF(G$18=0,\"0\",IF(COUNT(H18,$G$18),IFERROR(IF((H18)=\"\",\"\",ROUND(H18/$G$18*100,4)),\"\"),\"\"))))","v":"0"},0,0,{"$f":"(IF(I18=\"\",\"\",IF(I18=0,\"0\",IF(COUNT(J18,H18),IFERROR(ROUND(J18/H18*100,4),0),\"\"))))","v":0},{"$f":"(IF(I18=\"\",\"\",IF(I18=0,\"0\",IF(COUNT(K18,H18),IFERROR(ROUND(K18/H18*100,4),0),\"\"))))","v":0},null,null,null,null,null,null,null,null,null,{"$f":"IF($G$18=\"\",\"\",IF($G$18>=H18,H18,\"\"))","v":0},{"$f":"IF(H18=\"\",\"\",IF(H18>=J18,J18,\"\"))","v":0},{"$f":"IF(H18=\"\",\"\",IF(H18>=K18,K18,\"\"))","v":0}]
[null,null,null,null,null,"Poll",null,0,{"$f":"(IF($G$18=\"\",\"\",IF(G$18=0,\"0\",IF(COUNT(H19,$G$18),IFERROR(IF((H19)=\"\",\"\",ROUND(H19/$G$18*100,4)),\"\"),\"\"))))","v":"0"},0,0,{"$f":"(IF(I19=\"\",\"\",IF(I19=0,\"0\",IF(COUNT(J19,H19),IFERROR(ROUND(J19/H19*100,4),0),\"\"))))","v":0},{"$f":"(IF(I19=\"\",\"\",IF(I19=0,\"0\",IF(COUNT(K19,H19),IFERROR(ROUND(K19/H19*100,4),0),\"\"))))","v":0},null,null,null,null,null,null,null,null,null,{"$f":"IF($G$18=\"\",\"\",IF($G$18>=H19,H19,\"\"))","v":0},0,0]
[null,null,null,null,null,"Postal Ballot (if applicable)",null,0,"0",0,0,0,0,null,null,null,null,null,null,null,null,null,0,0,0]
[null,null,null,null,null,"Total",{"$f":"+IF(COUNT(G18),SUM(G18),\"\")","v":0},{"$f":"+IF(COUNT(H18:H20),ROUND(SUM(H18:H20),2),\"\")","v":0},{"$f":"(IF(COUNT(H21,G21),IFERROR(ROUND(H21/G21*100,4),0),\"\"))","v":0},{"$f":"+IF(COUNT(J18:J20),ROUND(SUM(J18:J20),2),\"\")","v":0},{"$f":"+IF(COUNT(K18:K20),ROUND(SUM(K18:K20),2),\"\")","v":0},0,0]
[null,null,null,null,"Public- Non Institutions","E-Voting",2985,2525,{"$f":"(IF($G$22=\"\",\"\",IF(G$22=0,\"0\",IF(COUNT(H22,$G$22),IFERROR(IF((H22)=\"\",\"\",ROUND(H22/$G$22*100,4)),\"\"),\"\"))))","v":84.589600000000004},2525,0,{"$f":"(IF(I22=\"\",\"\",IF(I22=0,\"0\",IF(COUNT(J22,H22),IFERROR(ROUND(J22/H22*100,4),0),\"\"))))","v":100},{"$f":"(IF(I22=\"\",\"\",IF(I22=0,\"0\",IF(COUNT(K22,H22),IFERROR(ROUND(K22/H22*100,4),0),\"\"))))","v":0},null,null,null,null,null,null,null,null,null,{"$f":"IF($G$22=\"\",\"\",IF($G$22>=H22,H22,\"\"))","v":2525},{"$f":"IF(H22=\"\",\"\",IF(H22>=J22,J22,\"\"))","v":2525},{"$f":"IF(H22=\"\",\"\",IF(H22>=K22,K22,\"\"))","v":0}]
[null,null,null,null,null,"Poll",null,460,{"$f":"(IF($G$22=\"\",\"\",IF(G$22=0,\"0\",IF(COUNT(H23,$G$22),IFERROR(IF((H23)=\"\",\"\",ROUND(H23/$G$22*100,4)),\"\"),\"\"))))","v":15.410399999999999},460,0,{"$f":"(IF(I23=\"\",\"\",IF(I23=0,\"0\",IF(COUNT(J23,H23),IFERROR(ROUND(J23/H23*100,4),0),\"\"))))","v":100},{"$f":"(IF(I23=\"\",\"\",IF(I23=0,\"0\",IF(COUNT(K23,H23),IFERROR(ROUND(K23/H23*100,4),0),\"\"))))","v":0},null,null,null,null,null,null,null,null,null,{"$f":"IF($G$22=\"\",\"\",IF($G$22>=H23,H23,\"\"))","v":460},460,0]
[null,null,null,null,null,"Postal Ballot (if applicable)",null,0,0,0,0,"0","0",null,null,null,null,null,null,null,null,null,0,0,0]
[null,null,null,null,null,"Total",{"$f":"+IF(COUNT(G22),SUM(G22),\"\")","v":2985},{"$f":"+IF(COUNT(H22:H24),ROUND(SUM(H22:H24),2),\"\")","v":2985},{"$f":"(IF(COUNT(H25,G25),IFERROR(ROUND(H25/G25*100,4),0),\"\"))","v":100},{"$f":"+IF(COUNT(J22:J24),ROUND(SUM(J22:J24),2),\"\")","v":2985},{"$f":"+IF(COUNT(K22:K24),ROUND(SUM(K22:K24),2),\"\")","v":0},100,0]
[null,null,null,null,"Total","Total",{"$f":"+IF(COUNT(G17,G21,G25),ROUND(SUM(G17,G21,G25),2),\"\")","v":3088537},{"$f":"+IF(COUNT(H17,H21,H25),ROUND(SUM(H17,H21,H25),2),\"\")","v":3088537},{"$f":"(IF(COUNT(H26,G26),IFERROR(ROUND(H26/G26*100,4),0),\"\"))","v":100},3088537,0,100,0]
[null,null,null,null,"Whether resolution is Pass or Not.",null,null,null,null,null,null,"Yes",null,null,null,null,null,"Whether resolution is passed"]
[null,null,null,null,"Disclosure of notes on resolution",null,null,null,null,null,null,null,null,null,null,null,null,"Disclosure of notes on voting resolution"]
[]
[null,null,null,null,"* this fields are optional"]
[null,null,null,null,"Details of Invalid Votes"]
[null,null,null,null,"Category",null,"No. of Votes"]
[null,null,null,null,"Promoter and Promoter Group"]
[null,null,null,null,"Public Insitutions"]
[null,null,null,null,"Public - Non Insitutions"]

{"sheet":"Resolution (2)","index":6,"n_rows":35,"n_cols":25,"rows_kept":35,"cut":false,"hidden":false,"merged":[[21,4,24,4],[21,6,23,6],[7,4,7,12],[8,4,8,7],[8,8,8,12],[9,4,9,7],[9,8,9,12],[10,4,10,7],[10,8,10,12],[12,4,12,5],[13,4,16,4],[13,6,15,6],[17,4,20,4],[17,6,19,6],[32,4,32,5],[33,4,33,5],[34,4,34,5],[26,4,26,10],[26,11,26,12],[27,4,27,10],[27,11,27,12],[30,4,30,6],[31,4,31,5]]}
[null,null,null,null,null,null,null,null,null,null,null,null,null,null,null,null,null,null,"Ordinary","Yes"]
[null,null,null,null,null,null,null,null,null,null,null,null,null,null,null,null,null,null,"Special","No"]
[]
[]
[]
[]
[]
[null,null,null,null,"Resolution (2)"]
[null,null,null,null,"Resolution required: (Ordinary / Special)",null,null,null,"Ordinary",null,null,null,null,null,null,null,null,"Type of resolution"]
[null,null,null,null,"Whether promoter/promoter group are interested in the agenda/resolution?",null,null,null,"No",null,null,null,null,null,null,null,null,"Whether promoter or promoter group are interested in the agenda or resolution"]
[null,null,null,null,"Description of resolution considered",null,null,null,"To Declare a dividend on the Equity Shares of the Company",null,null,null,null,null,null,null,null,"Description of resolution considered"]
[null,null,null,null,"Category","Mode of voting","No. of shares held                 ","No. of votes polled               ","% of Votes polled on outstanding shares ","No. of votes – in favour","No. of votes – against","% of votes in favour on votes polled ","% of Votes against on votes polled "]
[null,null,null,null,null,null,"(1)","(2)","(3)=[(2)/(1)]*100 ","(4)","(5)","(6)=[(4)/(2)]*100","(7)=[(5)/(2)]*100"]
[null,null,null,null,"Promoter and Promoter Group","E-Voting",3085552,3080547,{"$f":"(IF($G$14=\"\",\"\",IF(G$14=0,\"0\",IF(COUNT(H14,$G$14),IFERROR(IF((H14)=\"\",\"\",ROUND(H14/$G$14*100,4)),\"\"),\"\"))))","v":99.837800000000001},3080547,0,{"$f":"(IF(I14=\"\",\"\",IF(I14=0,\"0\",IF(COUNT(J14,H14),IFERROR(ROUND(J14/H14*100,4),0),\"\"))))","v":100},{"$f":"(IF(I14=\"\",\"\",IF(I14=0,\"0\",IF(COUNT(K14,H14),IFERROR(ROUND(K14/H14*100,4),0),\"\"))))","v":0},null,null,null,null,null,null,null,null,null,{"$f":"IF($G$14=\"\",\"\",IF($G$14>=H14,H14,\"\"))","v":3080547},{"$f":"IF(H14=\"\",\"\",IF(H14>=J14,J14,\"\"))","v":3080547},{"$f":"IF(H14=\"\",\"\",IF(H14>=K14,K14,\"\"))","v":0}]
[null,null,null,null,null,"Poll",null,5005,{"$f":"(IF($G$14=\"\",\"\",IF(G$14=0,\"0\",IF(COUNT(H15,$G$14),IFERROR(IF((H15)=\"\",\"\",ROUND(H15/$G$14*100,4)),\"\"),\"\"))))","v":0.16220000000000001},5005,0,{"$f":"(IF(I15=\"\",\"\",IF(I15=0,\"0\",IF(COUNT(J15,H15),IFERROR(ROUND(J15/H15*100,4),0),\"\"))))","v":100},{"$f":"(IF(I15=\"\",\"\",IF(I15=0,\"0\",IF(COUNT(K15,H15),IFERROR(ROUND(K15/H15*100,4),0),\"\"))))","v":0},null,null,null,null,null,null,null,null,null,{"$f":"IF($G$14=\"\",\"\",IF($G$14>=H15,H15,\"\"))","v":5005},{"$f":"IF(H15=\"\",\"\",IF(H15>=J15,J15,\"\"))","v":5005},{"$f":"IF(H15=\"\",\"\",IF(H15>=K15,K15,\"\"))","v":0}]
[null,null,null,null,null,"Postal Ballot (if applicable)",null,0,0,0,0,"0","0",null,null,null,null,null,null,null,null,null,0,0,0]
[null,null,null,null,null,"Total",{"$f":"+IF(COUNT(G14),SUM(G14),\"\")","v":3085552},{"$f":"+IF(COUNT(H14:H16),ROUND(SUM(H14:H16),2),\"\")","v":3085552},{"$f":"(IF(COUNT(H17,G17),IFERROR(ROUND(H17/G17*100,4),0),\"\"))","v":100},{"$f":"+IF(COUNT(J14:J16),ROUND(SUM(J14:J16),2),\"\")","v":3085552},0,{"$f":"(IF(COUNT(J17,H17),IFERROR(ROUND(J17/H17*100,4),0),\"\"))","v":100},{"$f":"(IF(COUNT(K17,H17),IFERROR(ROUND(K17/H17*100,4),0),\"\"))","v":0}]
[null,null,null,null,"Public- Institutions","E-Voting",0,0,{"$f":"(IF($G$18=\"\",\"\",IF(G$18=0,\"0\",IF(COUNT(H18,$G$18),IFERROR(IF((H18)=\"\",\"\",ROUND(H18/$G$18*100,4)),\"\"),\"\"))))","v":"0"},0,0,{"$f":"(IF(I18=\"\",\"\",IF(I18=0,\"0\",IF(COUNT(J18,H18),IFERROR(ROUND(J18/H18*100,4),0),\"\"))))","v":0},{"$f":"(IF(I18=\"\",\"\",IF(I18=0,\"0\",IF(COUNT(K18,H18),IFERROR(ROUND(K18/H18*100,4),0),\"\"))))","v":0},null,null,null,null,null,null,null,null,null,{"$f":"IF($G$18=\"\",\"\",IF($G$18>=H18,H18,\"\"))","v":0},{"$f":"IF(H18=\"\",\"\",IF(H18>=J18,J18,\"\"))","v":0},{"$f":"IF(H18=\"\",\"\",IF(H18>=K18,K18,\"\"))","v":0}]
[null,null,null,null,null,"Poll",null,0,{"$f":"(IF($G$18=\"\",\"\",IF(G$18=0,\"0\",IF(COUNT(H19,$G$18),IFERROR(IF((H19)=\"\",\"\",ROUND(H19/$G$18*100,4)),\"\"),\"\"))))","v":"0"},0,0,{"$f":"(IF(I19=\"\",\"\",IF(I19=0,\"0\",IF(COUNT(J19,H19),IFERROR(ROUND(J19/H19*100,4),0),\"\"))))","v":0},{"$f":"(IF(I19=\"\",\"\",IF(I19=0,\"0\",IF(COUNT(K19,H19),IFERROR(ROUND(K19/H19*100,4),0),\"\"))))","v":0},null,null,null,null,null,null,null,null,null,{"$f":"IF($G$18=\"\",\"\",IF($G$18>=H19,H19,\"\"))","v":0},0,0]
[null,null,null,null,null,"Postal Ballot (if applicable)",null,0,"0",0,0,0,0,null,null,null,null,null,null,null,null,null,0,0,0]
[null,null,null,null,null,"Total",{"$f":"+IF(COUNT(G18),SUM(G18),\"\")","v":0},{"$f":"+IF(COUNT(H18:H20),ROUND(SUM(H18:H20),2),\"\")","v":0},{"$f":"(IF(COUNT(H21,G21),IFERROR(ROUND(H21/G21*100,4),0),\"\"))","v":0},{"$f":"+IF(COUNT(J18:J20),ROUND(SUM(J18:J20),2),\"\")","v":0},{"$f":"+IF(COUNT(K18:K20),ROUND(SUM(K18:K20),2),\"\")","v":0},0,0]
[null,null,null,null,"Public- Non Institutions","E-Voting",2985,2525,{"$f":"(IF($G$22=\"\",\"\",IF(G$22=0,\"0\",IF(COUNT(H22,$G$22),IFERROR(IF((H22)=\"\",\"\",ROUND(H22/$G$22*100,4)),\"\"),\"\"))))","v":84.589600000000004},2525,0,{"$f":"(IF(I22=\"\",\"\",IF(I22=0,\"0\",IF(COUNT(J22,H22),IFERROR(ROUND(J22/H22*100,4),0),\"\"))))","v":100},{"$f":"(IF(I22=\"\",\"\",IF(I22=0,\"0\",IF(COUNT(K22,H22),IFERROR(ROUND(K22/H22*100,4),0),\"\"))))","v":0},null,null,null,null,null,null,null,null,null,{"$f":"IF($G$22=\"\",\"\",IF($G$22>=H22,H22,\"\"))","v":2525},{"$f":"IF(H22=\"\",\"\",IF(H22>=J22,J22,\"\"))","v":2525},{"$f":"IF(H22=\"\",\"\",IF(H22>=K22,K22,\"\"))","v":0}]
[null,null,null,null,null,"Poll",null,460,{"$f":"(IF($G$22=\"\",\"\",IF(G$22=0,\"0\",IF(COUNT(H23,$G$22),IFERROR(IF((H23)=\"\",\"\",ROUND(H23/$G$22*100,4)),\"\"),\"\"))))","v":15.410399999999999},460,0,{"$f":"(IF(I23=\"\",\"\",IF(I23=0,\"0\",IF(COUNT(J23,H23),IFERROR(ROUND(J23/H23*100,4),0),\"\"))))","v":100},{"$f":"(IF(I23=\"\",\"\",IF(I23=0,\"0\",IF(COUNT(K23,H23),IFERROR(ROUND(K23/H23*100,4),0),\"\"))))","v":0},null,null,null,null,null,null,null,null,null,{"$f":"IF($G$22=\"\",\"\",IF($G$22>=H23,H23,\"\"))","v":460},460,0]
[null,null,null,null,null,"Postal Ballot (if applicable)",null,0,0,0,0,"0","0",null,null,null,null,null,null,null,null,null,0,0,0]
[null,null,null,null,null,"Total",{"$f":"+IF(COUNT(G22),SUM(G22),\"\")","v":2985},{"$f":"+IF(COUNT(H22:H24),ROUND(SUM(H22:H24),2),\"\")","v":2985},{"$f":"(IF(COUNT(H25,G25),IFERROR(ROUND(H25/G25*100,4),0),\"\"))","v":100},{"$f":"+IF(COUNT(J22:J24),ROUND(SUM(J22:J24),2),\"\")","v":2985},{"$f":"+IF(COUNT(K22:K24),ROUND(SUM(K22:K24),2),\"\")","v":0},100,0]
[null,null,null,null,"Total","Total",{"$f":"+IF(COUNT(G17,G21,G25),ROUND(SUM(G17,G21,G25),2),\"\")","v":3088537},{"$f":"+IF(COUNT(H17,H21,H25),ROUND(SUM(H17,H21,H25),2),\"\")","v":3088537},{"$f":"(IF(COUNT(H26,G26),IFERROR(ROUND(H26/G26*100,4),0),\"\"))","v":100},3088537,0,100,0]
[null,null,null,null,"Whether resolution is Pass or Not.",null,null,null,null,null,null,"Yes",null,null,null,null,null,"Whether resolution is passed"]
[null,null,null,null,"Disclosure of notes on resolution",null,null,null,null,null,null,null,null,null,null,null,null,"Disclosure of notes on voting resolution"]
[]
[null,null,null,null,"* this fields are optional"]
[null,null,null,null,"Details of Invalid Votes"]
[null,null,null,null,"Category",null,"No. of Votes"]
[null,null,null,null,"Promoter and Promoter Group"]
[null,null,null,null,"Public Insitutions"]
[null,null,null,null,"Public - Non Insitutions"]

{"sheet":"Resolution (3)","index":7,"n_rows":35,"n_cols":25,"rows_kept":35,"cut":false,"hidden":false,"merged":[[21,4,24,4],[21,6,23,6],[7,4,7,12],[8,4,8,7],[8,8,8,12],[9,4,9,7],[9,8,9,12],[10,4,10,7],[10,8,10,12],[12,4,12,5],[13,4,16,4],[13,6,15,6],[17,4,20,4],[17,6,19,6],[32,4,32,5],[33,4,33,5],[34,4,34,5],[26,4,26,10],[26,11,26,12],[27,4,27,10],[27,11,27,12],[30,4,30,6],[31,4,31,5]]}
[null,null,null,null,null,null,null,null,null,null,null,null,null,null,null,null,null,null,"Ordinary","Yes"]
[null,null,null,null,null,null,null,null,null,null,null,null,null,null,null,null,null,null,"Special","No"]
[]
[]
[]
[]
[]
[null,null,null,null,"Resolution (3)"]
[null,null,null,null,"Resolution required: (Ordinary / Special)",null,null,null,"Ordinary",null,null,null,null,null,null,null,null,"Type of resolution"]
[null,null,null,null,"Whether promoter/promoter group are interested in the agenda/resolution?",null,null,null,"No",null,null,null,null,null,null,null,null,"Whether promoter or promoter group are interested in the agenda or resolution"]
[null,null,null,null,"Description of resolution considered",null,null,null,"To appoint a Director in place of Shri Dipesh K. Shroff, who retires by rotation and being eligible offers himself for re-appointment",null,null,null,null,null,null,null,null,"Description of resolution considered"]
[null,null,null,null,"Category","Mode of voting","No. of shares held                 ","No. of votes polled               ","% of Votes polled on outstanding shares ","No. of votes – in favour","No. of votes – against","% of votes in favour on votes polled ","% of Votes against on votes polled "]
[null,null,null,null,null,null,"(1)","(2)","(3)=[(2)/(1)]*100 ","(4)","(5)","(6)=[(4)/(2)]*100","(7)=[(5)/(2)]*100"]
[null,null,null,null,"Promoter and Promoter Group","E-Voting",3085552,3080547,{"$f":"(IF($G$14=\"\",\"\",IF(G$14=0,\"0\",IF(COUNT(H14,$G$14),IFERROR(IF((H14)=\"\",\"\",ROUND(H14/$G$14*100,4)),\"\"),\"\"))))","v":99.837800000000001},3080547,0,{"$f":"(IF(I14=\"\",\"\",IF(I14=0,\"0\",IF(COUNT(J14,H14),IFERROR(ROUND(J14/H14*100,4),0),\"\"))))","v":100},{"$f":"(IF(I14=\"\",\"\",IF(I14=0,\"0\",IF(COUNT(K14,H14),IFERROR(ROUND(K14/H14*100,4),0),\"\"))))","v":0},null,null,null,null,null,null,null,null,null,{"$f":"IF($G$14=\"\",\"\",IF($G$14>=H14,H14,\"\"))","v":3080547},{"$f":"IF(H14=\"\",\"\",IF(H14>=J14,J14,\"\"))","v":3080547},{"$f":"IF(H14=\"\",\"\",IF(H14>=K14,K14,\"\"))","v":0}]
[null,null,null,null,null,"Poll",null,5005,{"$f":"(IF($G$14=\"\",\"\",IF(G$14=0,\"0\",IF(COUNT(H15,$G$14),IFERROR(IF((H15)=\"\",\"\",ROUND(H15/$G$14*100,4)),\"\"),\"\"))))","v":0.16220000000000001},5005,0,{"$f":"(IF(I15=\"\",\"\",IF(I15=0,\"0\",IF(COUNT(J15,H15),IFERROR(ROUND(J15/H15*100,4),0),\"\"))))","v":100},{"$f":"(IF(I15=\"\",\"\",IF(I15=0,\"0\",IF(COUNT(K15,H15),IFERROR(ROUND(K15/H15*100,4),0),\"\"))))","v":0},null,null,null,null,null,null,null,null,null,{"$f":"IF($G$14=\"\",\"\",IF($G$14>=H15,H15,\"\"))","v":5005},{"$f":"IF(H15=\"\",\"\",IF(H15>=J15,J15,\"\"))","v":5005},{"$f":"IF(H15=\"\",\"\",IF(H15>=K15,K15,\"\"))","v":0}]
[null,null,null,null,null,"Postal Ballot (if applicable)",null,0,0,0,0,"0","0",null,null,null,null,null,null,null,null,null,0,0,0]
[null,null,null,null,null,"Total",{"$f":"+IF(COUNT(G14),SUM(G14),\"\")","v":3085552},{"$f":"+IF(COUNT(H14:H16),ROUND(SUM(H14:H16),2),\"\")","v":3085552},{"$f":"(IF(COUNT(H17,G17),IFERROR(ROUND(H17/G17*100,4),0),\"\"))","v":100},{"$f":"+IF(COUNT(J14:J16),ROUND(SUM(J14:J16),2),\"\")","v":3085552},0,{"$f":"(IF(COUNT(J17,H17),IFERROR(ROUND(J17/H17*100,4),0),\"\"))","v":100},{"$f":"(IF(COUNT(K17,H17),IFERROR(ROUND(K17/H17*100,4),0),\"\"))","v":0}]
[null,null,null,null,"Public- Institutions","E-Voting",0,0,{"$f":"(IF($G$18=\"\",\"\",IF(G$18=0,\"0\",IF(COUNT(H18,$G$18),IFERROR(IF((H18)=\"\",\"\",ROUND(H18/$G$18*100,4)),\"\"),\"\"))))","v":"0"},0,0,{"$f":"(IF(I18=\"\",\"\",IF(I18=0,\"0\",IF(COUNT(J18,H18),IFERROR(ROUND(J18/H18*100,4),0),\"\"))))","v":0},{"$f":"(IF(I18=\"\",\"\",IF(I18=0,\"0\",IF(COUNT(K18,H18),IFERROR(ROUND(K18/H18*100,4),0),\"\"))))","v":0},null,null,null,null,null,null,null,null,null,{"$f":"IF($G$18=\"\",\"\",IF($G$18>=H18,H18,\"\"))","v":0},{"$f":"IF(H18=\"\",\"\",IF(H18>=J18,J18,\"\"))","v":0},{"$f":"IF(H18=\"\",\"\",IF(H18>=K18,K18,\"\"))","v":0}]
[null,null,null,null,null,"Poll",null,0,{"$f":"(IF($G$18=\"\",\"\",IF(G$18=0,\"0\",IF(COUNT(H19,$G$18),IFERROR(IF((H19)=\"\",\"\",ROUND(H19/$G$18*100,4)),\"\"),\"\"))))","v":"0"},0,0,{"$f":"(IF(I19=\"\",\"\",IF(I19=0,\"0\",IF(COUNT(J19,H19),IFERROR(ROUND(J19/H19*100,4),0),\"\"))))","v":0},{"$f":"(IF(I19=\"\",\"\",IF(I19=0,\"0\",IF(COUNT(K19,H19),IFERROR(ROUND(K19/H19*100,4),0),\"\"))))","v":0},null,null,null,null,null,null,null,null,null,{"$f":"IF($G$18=\"\",\"\",IF($G$18>=H19,H19,\"\"))","v":0},0,0]
[null,null,null,null,null,"Postal Ballot (if applicable)",null,0,"0",0,0,0,0,null,null,null,null,null,null,null,null,null,0,0,0]
[null,null,null,null,null,"Total",{"$f":"+IF(COUNT(G18),SUM(G18),\"\")","v":0},{"$f":"+IF(COUNT(H18:H20),ROUND(SUM(H18:H20),2),\"\")","v":0},{"$f":"(IF(COUNT(H21,G21),IFERROR(ROUND(H21/G21*100,4),0),\"\"))","v":0},{"$f":"+IF(COUNT(J18:J20),ROUND(SUM(J18:J20),2),\"\")","v":0},{"$f":"+IF(COUNT(K18:K20),ROUND(SUM(K18:K20),2),\"\")","v":0},0,0]
[null,null,null,null,"Public- Non Institutions","E-Voting",2985,2525,{"$f":"(IF($G$22=\"\",\"\",IF(G$22=0,\"0\",IF(COUNT(H22,$G$22),IFERROR(IF((H22)=\"\",\"\",ROUND(H22/$G$22*100,4)),\"\"),\"\"))))","v":84.589600000000004},2525,0,{"$f":"(IF(I22=\"\",\"\",IF(I22=0,\"0\",IF(COUNT(J22,H22),IFERROR(ROUND(J22/H22*100,4),0),\"\"))))","v":100},{"$f":"(IF(I22=\"\",\"\",IF(I22=0,\"0\",IF(COUNT(K22,H22),IFERROR(ROUND(K22/H22*100,4),0),\"\"))))","v":0},null,null,null,null,null,null,null,null,null,{"$f":"IF($G$22=\"\",\"\",IF($G$22>=H22,H22,\"\"))","v":2525},{"$f":"IF(H22=\"\",\"\",IF(H22>=J22,J22,\"\"))","v":2525},{"$f":"IF(H22=\"\",\"\",IF(H22>=K22,K22,\"\"))","v":0}]
[null,null,null,null,null,"Poll",null,460,{"$f":"(IF($G$22=\"\",\"\",IF(G$22=0,\"0\",IF(COUNT(H23,$G$22),IFERROR(IF((H23)=\"\",\"\",ROUND(H23/$G$22*100,4)),\"\"),\"\"))))","v":15.410399999999999},460,0,{"$f":"(IF(I23=\"\",\"\",IF(I23=0,\"0\",IF(COUNT(J23,H23),IFERROR(ROUND(J23/H23*100,4),0),\"\"))))","v":100},{"$f":"(IF(I23=\"\",\"\",IF(I23=0,\"0\",IF(COUNT(K23,H23),IFERROR(ROUND(K23/H23*100,4),0),\"\"))))","v":0},null,null,null,null,null,null,null,null,null,{"$f":"IF($G$22=\"\",\"\",IF($G$22>=H23,H23,\"\"))","v":460},460,0]
[null,null,null,null,null,"Postal Ballot (if applicable)",null,0,0,0,0,"0","0",null,null,null,null,null,null,null,null,null,0,0,0]
[null,null,null,null,null,"Total",{"$f":"+IF(COUNT(G22),SUM(G22),\"\")","v":2985},{"$f":"+IF(COUNT(H22:H24),ROUND(SUM(H22:H24),2),\"\")","v":2985},{"$f":"(IF(COUNT(H25,G25),IFERROR(ROUND(H25/G25*100,4),0),\"\"))","v":100},{"$f":"+IF(COUNT(J22:J24),ROUND(SUM(J22:J24),2),\"\")","v":2985},{"$f":"+IF(COUNT(K22:K24),ROUND(SUM(K22:K24),2),\"\")","v":0},100,0]
[null,null,null,null,"Total","Total",{"$f":"+IF(COUNT(G17,G21,G25),ROUND(SUM(G17,G21,G25),2),\"\")","v":3088537},{"$f":"+IF(COUNT(H17,H21,H25),ROUND(SUM(H17,H21,H25),2),\"\")","v":3088537},{"$f":"(IF(COUNT(H26,G26),IFERROR(ROUND(H26/G26*100,4),0),\"\"))","v":100},3088537,0,100,0]
[null,null,null,null,"Whether resolution is Pass or Not.",null,null,null,null,null,null,"Yes",null,null,null,null,null,"Whether resolution is passed"]
[null,null,null,null,"Disclosure of notes on resolution",null,null,null,null,null,null,null,null,null,null,null,null,"Disclosure of notes on voting resolution"]
[]
[null,null,null,null,"* this fields are optional"]
[null,null,null,null,"Details of Invalid Votes"]
[null,null,null,null,"Category",null,"No. of Votes"]
[null,null,null,null,"Promoter and Promoter Group"]
[null,null,null,null,"Public Insitutions"]
[null,null,null,null,"Public - Non Insitutions"]

{"sheet":"Resolution (4)","index":8,"n_rows":35,"n_cols":25,"rows_kept":35,"cut":false,"hidden":false,"merged":[[21,4,24,4],[21,6,23,6],[7,4,7,12],[8,4,8,7],[8,8,8,12],[9,4,9,7],[9,8,9,12],[10,4,10,7],[10,8,10,12],[12,4,12,5],[13,4,16,4],[13,6,15,6],[17,4,20,4],[17,6,19,6],[32,4,32,5],[33,4,33,5],[34,4,34,5],[26,4,26,10],[26,11,26,12],[27,4,27,10],[27,11,27,12],[30,4,30,6],[31,4,31,5]]}
[null,null,null,null,null,null,null,null,null,null,null,null,null,null,null,null,null,null,"Ordinary","Yes"]
[null,null,null,null,null,null,null,null,null,null,null,null,null,null,null,null,null,null,"Special","No"]
[]
[]
[]
[]
[]
[null,null,null,null,"Resolution (4)"]
[null,null,null,null,"Resolution required: (Ordinary / Special)",null,null,null,"Ordinary",null,null,null,null,null,null,null,null,"Type of resolution"]
[null,null,null,null,"Whether promoter/promoter group are interested in the agenda/resolution?",null,null,null,"No",null,null,null,null,null,null,null,null,"Whether promoter or promoter group are interested in the agenda or resolution"]
[null,null,null,null,"Description of resolution considered",null,null,null,"To ratify the appointment of the Statutory Auditors of the Company",null,null,null,null,null,null,null,null,"Description of resolution considered"]
[null,null,null,null,"Category","Mode of voting","No. of shares held                 ","No. of votes polled               ","% of Votes polled on outstanding shares ","No. of votes – in favour","No. of votes – against","% of votes in favour on votes polled ","% of Votes against on votes polled "]
[null,null,null,null,null,null,"(1)","(2)","(3)=[(2)/(1)]*100 ","(4)","(5)","(6)=[(4)/(2)]*100","(7)=[(5)/(2)]*100"]
[null,null,null,null,"Promoter and Promoter Group","E-Voting",3085552,3080547,{"$f":"(IF($G$14=\"\",\"\",IF(G$14=0,\"0\",IF(COUNT(H14,$G$14),IFERROR(IF((H14)=\"\",\"\",ROUND(H14/$G$14*100,4)),\"\"),\"\"))))","v":99.837800000000001},3080547,0,{"$f":"(IF(I14=\"\",\"\",IF(I14=0,\"0\",IF(COUNT(J14,H14),IFERROR(ROUND(J14/H14*100,4),0),\"\"))))","v":100},{"$f":"(IF(I14=\"\",\"\",IF(I14=0,\"0\",IF(COUNT(K14,H14),IFERROR(ROUND(K14/H14*100,4),0),\"\"))))","v":0},null,null,null,null,null,null,null,null,null,{"$f":"IF($G$14=\"\",\"\",IF($G$14>=H14,H14,\"\"))","v":3080547},{"$f":"IF(H14=\"\",\"\",IF(H14>=J14,J14,\"\"))","v":3080547},{"$f":"IF(H14=\"\",\"\",IF(H14>=K14,K14,\"\"))","v":0}]
[null,null,null,null,null,"Poll",null,5005,{"$f":"(IF($G$14=\"\",\"\",IF(G$14=0,\"0\",IF(COUNT(H15,$G$14),IFERROR(IF((H15)=\"\",\"\",ROUND(H15/$G$14*100,4)),\"\"),\"\"))))","v":0.16220000000000001},5005,0,{"$f":"(IF(I15=\"\",\"\",IF(I15=0,\"0\",IF(COUNT(J15,H15),IFERROR(ROUND(J15/H15*100,4),0),\"\"))))","v":100},{"$f":"(IF(I15=\"\",\"\",IF(I15=0,\"0\",IF(COUNT(K15,H15),IFERROR(ROUND(K15/H15*100,4),0),\"\"))))","v":0},null,null,null,null,null,null,null,null,null,{"$f":"IF($G$14=\"\",\"\",IF($G$14>=H15,H15,\"\"))","v":5005},{"$f":"IF(H15=\"\",\"\",IF(H15>=J15,J15,\"\"))","v":5005},{"$f":"IF(H15=\"\",\"\",IF(H15>=K15,K15,\"\"))","v":0}]
[null,null,null,null,null,"Postal Ballot (if applicable)",null,0,0,0,0,"0","0",null,null,null,null,null,null,null,null,null,0,0,0]
[null,null,null,null,null,"Total",{"$f":"+IF(COUNT(G14),SUM(G14),\"\")","v":3085552},{"$f":"+IF(COUNT(H14:H16),ROUND(SUM(H14:H16),2),\"\")","v":3085552},{"$f":"(IF(COUNT(H17,G17),IFERROR(ROUND(H17/G17*100,4),0),\"\"))","v":100},{"$f":"+IF(COUNT(J14:J16),ROUND(SUM(J14:J16),2),\"\")","v":3085552},0,{"$f":"(IF(COUNT(J17,H17),IFERROR(ROUND(J17/H17*100,4),0),\"\"))","v":100},{"$f":"(IF(COUNT(K17,H17),IFERROR(ROUND(K17/H17*100,4),0),\"\"))","v":0}]
[null,null,null,null,"Public- Institutions","E-Voting",0,0,{"$f":"(IF($G$18=\"\",\"\",IF(G$18=0,\"0\",IF(COUNT(H18,$G$18),IFERROR(IF((H18)=\"\",\"\",ROUND(H18/$G$18*100,4)),\"\"),\"\"))))","v":"0"},0,0,{"$f":"(IF(I18=\"\",\"\",IF(I18=0,\"0\",IF(COUNT(J18,H18),IFERROR(ROUND(J18/H18*100,4),0),\"\"))))","v":0},{"$f":"(IF(I18=\"\",\"\",IF(I18=0,\"0\",IF(COUNT(K18,H18),IFERROR(ROUND(K18/H18*100,4),0),\"\"))))","v":0},null,null,null,null,null,null,null,null,null,{"$f":"IF($G$18=\"\",\"\",IF($G$18>=H18,H18,\"\"))","v":0},{"$f":"IF(H18=\"\",\"\",IF(H18>=J18,J18,\"\"))","v":0},{"$f":"IF(H18=\"\",\"\",IF(H18>=K18,K18,\"\"))","v":0}]
[null,null,null,null,null,"Poll",null,0,{"$f":"(IF($G$18=\"\",\"\",IF(G$18=0,\"0\",IF(COUNT(H19,$G$18),IFERROR(IF((H19)=\"\",\"\",ROUND(H19/$G$18*100,4)),\"\"),\"\"))))","v":"0"},0,0,{"$f":"(IF(I19=\"\",\"\",IF(I19=0,\"0\",IF(COUNT(J19,H19),IFERROR(ROUND(J19/H19*100,4),0),\"\"))))","v":0},{"$f":"(IF(I19=\"\",\"\",IF(I19=0,\"0\",IF(COUNT(K19,H19),IFERROR(ROUND(K19/H19*100,4),0),\"\"))))","v":0},null,null,null,null,null,null,null,null,null,{"$f":"IF($G$18=\"\",\"\",IF($G$18>=H19,H19,\"\"))","v":0},0,0]
[null,null,null,null,null,"Postal Ballot (if applicable)",null,0,"0",0,0,0,0,null,null,null,null,null,null,null,null,null,0,0,0]
[null,null,null,null,null,"Total",{"$f":"+IF(COUNT(G18),SUM(G18),\"\")","v":0},{"$f":"+IF(COUNT(H18:H20),ROUND(SUM(H18:H20),2),\"\")","v":0},{"$f":"(IF(COUNT(H21,G21),IFERROR(ROUND(H21/G21*100,4),0),\"\"))","v":0},{"$f":"+IF(COUNT(J18:J20),ROUND(SUM(J18:J20),2),\"\")","v":0},{"$f":"+IF(COUNT(K18:K20),ROUND(SUM(K18:K20),2),\"\")","v":0},0,0]
[null,null,null,null,"Public- Non Institutions","E-Voting",2985,2525,{"$f":"(IF($G$22=\"\",\"\",IF(G$22=0,\"0\",IF(COUNT(H22,$G$22),IFERROR(IF((H22)=\"\",\"\",ROUND(H22/$G$22*100,4)),\"\"),\"\"))))","v":84.589600000000004},2525,0,{"$f":"(IF(I22=\"\",\"\",IF(I22=0,\"0\",IF(COUNT(J22,H22),IFERROR(ROUND(J22/H22*100,4),0),\"\"))))","v":100},{"$f":"(IF(I22=\"\",\"\",IF(I22=0,\"0\",IF(COUNT(K22,H22),IFERROR(ROUND(K22/H22*100,4),0),\"\"))))","v":0},null,null,null,null,null,null,null,null,null,{"$f":"IF($G$22=\"\",\"\",IF($G$22>=H22,H22,\"\"))","v":2525},{"$f":"IF(H22=\"\",\"\",IF(H22>=J22,J22,\"\"))","v":2525},{"$f":"IF(H22=\"\",\"\",IF(H22>=K22,K22,\"\"))","v":0}]
[null,null,null,null,null,"Poll",null,460,{"$f":"(IF($G$22=\"\",\"\",IF(G$22=0,\"0\",IF(COUNT(H23,$G$22),IFERROR(IF((H23)=\"\",\"\",ROUND(H23/$G$22*100,4)),\"\"),\"\"))))","v":15.410399999999999},460,0,{"$f":"(IF(I23=\"\",\"\",IF(I23=0,\"0\",IF(COUNT(J23,H23),IFERROR(ROUND(J23/H23*100,4),0),\"\"))))","v":100},{"$f":"(IF(I23=\"\",\"\",IF(I23=0,\"0\",IF(COUNT(K23,H23),IFERROR(ROUND(K23/H23*100,4),0),\"\"))))","v":0},null,null,null,null,null,null,null,null,null,{"$f":"IF($G$22=\"\",\"\",IF($G$22>=H23,H23,\"\"))","v":460},460,0]
[null,null,null,null,null,"Postal Ballot (if applicable)",null,0,0,0,0,"0","0",null,null,null,null,null,null,null,null,null,0,0,0]
[null,null,null,null,null,"Total",{"$f":"+IF(COUNT(G22),SUM(G22),\"\")","v":2985},{"$f":"+IF(COUNT(H22:H24),ROUND(SUM(H22:H24),2),\"\")","v":2985},{"$f":"(IF(COUNT(H25,G25),IFERROR(ROUND(H25/G25*100,4),0),\"\"))","v":100},{"$f":"+IF(COUNT(J22:J24),ROUND(SUM(J22:J24),2),\"\")","v":2985},{"$f":"+IF(COUNT(K22:K24),ROUND(SUM(K22:K24),2),\"\")","v":0},100,0]
[null,null,null,null,"Total","Total",{"$f":"+IF(COUNT(G17,G21,G25),ROUND(SUM(G17,G21,G25),2),\"\")","v":3088537},{"$f":"+IF(COUNT(H17,H21,H25),ROUND(SUM(H17,H21,H25),2),\"\")","v":3088537},{"$f":"(IF(COUNT(H26,G26),IFERROR(ROUND(H26/G26*100,4),0),\"\"))","v":100},3088537,0,100,0]
[null,null,null,null,"Whether resolution is Pass or Not.",null,null,null,null,null,null,"Yes",null,null,null,null,null,"Whether resolution is passed"]
[null,null,null,null,"Disclosure of notes on resolution",null,null,null,null,null,null,null,null,null,null,null,null,"Disclosure of notes on voting resolution"]
[]
[null,null,null,null,"* this fields are optional"]
[null,null,null,null,"Details of Invalid Votes"]
[null,null,null,null,"Category",null,"No. of Votes"]
[null,null,null,null,"Promoter and Promoter Group"]
[null,null,null,null,"Public Insitutions"]
[null,null,null,null,"Public - Non Insitutions"]

{"sheet":"Resolution (5)","index":9,"n_rows":35,"n_cols":25,"rows_kept":35,"cut":false,"hidden":false,"merged":[[21,4,24,4],[21,6,23,6],[7,4,7,12],[8,4,8,7],[8,8,8,12],[9,4,9,7],[9,8,9,12],[10,4,10,7],[10,8,10,12],[12,4,12,5],[13,4,16,4],[13,6,15,6],[17,4,20,4],[17,6,19,6],[32,4,32,5],[33,4,33,5],[34,4,34,5],[26,4,26,10],[26,11,26,12],[27,4,27,10],[27,11,27,12],[30,4,30,6],[31,4,31,5]]}
[null,null,null,null,null,null,null,null,null,null,null,null,null,null,null,null,null,null,"Ordinary","Yes"]
[null,null,null,null,null,null,null,null,null,null,null,null,null,null,null,null,null,null,"Special","No"]
[]
[]
[]
[]
[]
[null,null,null,null,"Resolution (5)"]
[null,null,null,null,"Resolution required: (Ordinary / Special)",null,null,null,"Ordinary",null,null,null,null,null,null,null,null,"Type of resolution"]
[null,null,null,null,"Whether promoter/promoter group are interested in the agenda/resolution?",null,null,null,"No",null,null,null,null,null,null,null,null,"Whether promoter or promoter group are interested in the agenda or resolution"]
[null,null,null,null,"Description of resolution considered",null,null,null,"To ratify the remuneration of the Cost Auditors for the Financial Year ending 31st March, 2019",null,null,null,null,null,null,null,null,"Description of resolution considered"]
[null,null,null,null,"Category","Mode of voting","No. of shares held                 ","No. of votes polled               ","% of Votes polled on outstanding shares ","No. of votes – in favour","No. of votes – against","% of votes in favour on votes polled ","% of Votes against on votes polled "]
[null,null,null,null,null,null,"(1)","(2)","(3)=[(2)/(1)]*100 ","(4)","(5)","(6)=[(4)/(2)]*100","(7)=[(5)/(2)]*100"]
[null,null,null,null,"Promoter and Promoter Group","E-Voting",3085552,3080547,{"$f":"(IF($G$14=\"\",\"\",IF(G$14=0,\"0\",IF(COUNT(H14,$G$14),IFERROR(IF((H14)=\"\",\"\",ROUND(H14/$G$14*100,4)),\"\"),\"\"))))","v":99.837800000000001},3080547,0,{"$f":"(IF(I14=\"\",\"\",IF(I14=0,\"0\",IF(COUNT(J14,H14),IFERROR(ROUND(J14/H14*100,4),0),\"\"))))","v":100},{"$f":"(IF(I14=\"\",\"\",IF(I14=0,\"0\",IF(COUNT(K14,H14),IFERROR(ROUND(K14/H14*100,4),0),\"\"))))","v":0},null,null,null,null,null,null,null,null,null,{"$f":"IF($G$14=\"\",\"\",IF($G$14>=H14,H14,\"\"))","v":3080547},{"$f":"IF(H14=\"\",\"\",IF(H14>=J14,J14,\"\"))","v":3080547},{"$f":"IF(H14=\"\",\"\",IF(H14>=K14,K14,\"\"))","v":0}]
[null,null,null,null,null,"Poll",null,5005,{"$f":"(IF($G$14=\"\",\"\",IF(G$14=0,\"0\",IF(COUNT(H15,$G$14),IFERROR(IF((H15)=\"\",\"\",ROUND(H15/$G$14*100,4)),\"\"),\"\"))))","v":0.16220000000000001},5005,0,{"$f":"(IF(I15=\"\",\"\",IF(I15=0,\"0\",IF(COUNT(J15,H15),IFERROR(ROUND(J15/H15*100,4),0),\"\"))))","v":100},{"$f":"(IF(I15=\"\",\"\",IF(I15=0,\"0\",IF(COUNT(K15,H15),IFERROR(ROUND(K15/H15*100,4),0),\"\"))))","v":0},null,null,null,null,null,null,null,null,null,{"$f":"IF($G$14=\"\",\"\",IF($G$14>=H15,H15,\"\"))","v":5005},{"$f":"IF(H15=\"\",\"\",IF(H15>=J15,J15,\"\"))","v":5005},{"$f":"IF(H15=\"\",\"\",IF(H15>=K15,K15,\"\"))","v":0}]
[null,null,null,null,null,"Postal Ballot (if applicable)",null,0,0,0,0,"0","0",null,null,null,null,null,null,null,null,null,0,0,0]
[null,null,null,null,null,"Total",{"$f":"+IF(COUNT(G14),SUM(G14),\"\")","v":3085552},{"$f":"+IF(COUNT(H14:H16),ROUND(SUM(H14:H16),2),\"\")","v":3085552},{"$f":"(IF(COUNT(H17,G17),IFERROR(ROUND(H17/G17*100,4),0),\"\"))","v":100},{"$f":"+IF(COUNT(J14:J16),ROUND(SUM(J14:J16),2),\"\")","v":3085552},0,{"$f":"(IF(COUNT(J17,H17),IFERROR(ROUND(J17/H17*100,4),0),\"\"))","v":100},{"$f":"(IF(COUNT(K17,H17),IFERROR(ROUND(K17/H17*100,4),0),\"\"))","v":0}]
[null,null,null,null,"Public- Institutions","E-Voting",0,0,{"$f":"(IF($G$18=\"\",\"\",IF(G$18=0,\"0\",IF(COUNT(H18,$G$18),IFERROR(IF((H18)=\"\",\"\",ROUND(H18/$G$18*100,4)),\"\"),\"\"))))","v":"0"},0,0,{"$f":"(IF(I18=\"\",\"\",IF(I18=0,\"0\",IF(COUNT(J18,H18),IFERROR(ROUND(J18/H18*100,4),0),\"\"))))","v":0},{"$f":"(IF(I18=\"\",\"\",IF(I18=0,\"0\",IF(COUNT(K18,H18),IFERROR(ROUND(K18/H18*100,4),0),\"\"))))","v":0},null,null,null,null,null,null,null,null,null,{"$f":"IF($G$18=\"\",\"\",IF($G$18>=H18,H18,\"\"))","v":0},{"$f":"IF(H18=\"\",\"\",IF(H18>=J18,J18,\"\"))","v":0},{"$f":"IF(H18=\"\",\"\",IF(H18>=K18,K18,\"\"))","v":0}]
[null,null,null,null,null,"Poll",null,0,{"$f":"(IF($G$18=\"\",\"\",IF(G$18=0,\"0\",IF(COUNT(H19,$G$18),IFERROR(IF((H19)=\"\",\"\",ROUND(H19/$G$18*100,4)),\"\"),\"\"))))","v":"0"},0,0,{"$f":"(IF(I19=\"\",\"\",IF(I19=0,\"0\",IF(COUNT(J19,H19),IFERROR(ROUND(J19/H19*100,4),0),\"\"))))","v":0},{"$f":"(IF(I19=\"\",\"\",IF(I19=0,\"0\",IF(COUNT(K19,H19),IFERROR(ROUND(K19/H19*100,4),0),\"\"))))","v":0},null,null,null,null,null,null,null,null,null,{"$f":"IF($G$18=\"\",\"\",IF($G$18>=H19,H19,\"\"))","v":0},0,0]
[null,null,null,null,null,"Postal Ballot (if applicable)",null,0,"0",0,0,0,0,null,null,null,null,null,null,null,null,null,0,0,0]
[null,null,null,null,null,"Total",{"$f":"+IF(COUNT(G18),SUM(G18),\"\")","v":0},{"$f":"+IF(COUNT(H18:H20),ROUND(SUM(H18:H20),2),\"\")","v":0},{"$f":"(IF(COUNT(H21,G21),IFERROR(ROUND(H21/G21*100,4),0),\"\"))","v":0},{"$f":"+IF(COUNT(J18:J20),ROUND(SUM(J18:J20),2),\"\")","v":0},{"$f":"+IF(COUNT(K18:K20),ROUND(SUM(K18:K20),2),\"\")","v":0},0,0]
[null,null,null,null,"Public- Non Institutions","E-Voting",2985,2525,{"$f":"(IF($G$22=\"\",\"\",IF(G$22=0,\"0\",IF(COUNT(H22,$G$22),IFERROR(IF((H22)=\"\",\"\",ROUND(H22/$G$22*100,4)),\"\"),\"\"))))","v":84.589600000000004},2525,0,{"$f":"(IF(I22=\"\",\"\",IF(I22=0,\"0\",IF(COUNT(J22,H22),IFERROR(ROUND(J22/H22*100,4),0),\"\"))))","v":100},{"$f":"(IF(I22=\"\",\"\",IF(I22=0,\"0\",IF(COUNT(K22,H22),IFERROR(ROUND(K22/H22*100,4),0),\"\"))))","v":0},null,null,null,null,null,null,null,null,null,{"$f":"IF($G$22=\"\",\"\",IF($G$22>=H22,H22,\"\"))","v":2525},{"$f":"IF(H22=\"\",\"\",IF(H22>=J22,J22,\"\"))","v":2525},{"$f":"IF(H22=\"\",\"\",IF(H22>=K22,K22,\"\"))","v":0}]
[null,null,null,null,null,"Poll",null,460,{"$f":"(IF($G$22=\"\",\"\",IF(G$22=0,\"0\",IF(COUNT(H23,$G$22),IFERROR(IF((H23)=\"\",\"\",ROUND(H23/$G$22*100,4)),\"\"),\"\"))))","v":15.410399999999999},460,0,{"$f":"(IF(I23=\"\",\"\",IF(I23=0,\"0\",IF(COUNT(J23,H23),IFERROR(ROUND(J23/H23*100,4),0),\"\"))))","v":100},{"$f":"(IF(I23=\"\",\"\",IF(I23=0,\"0\",IF(COUNT(K23,H23),IFERROR(ROUND(K23/H23*100,4),0),\"\"))))","v":0},null,null,null,null,null,null,null,null,null,{"$f":"IF($G$22=\"\",\"\",IF($G$22>=H23,H23,\"\"))","v":460},460,0]
[null,null,null,null,null,"Postal Ballot (if applicable)",null,0,0,0,0,"0","0",null,null,null,null,null,null,null,null,null,0,0,0]
[null,null,null,null,null,"Total",{"$f":"+IF(COUNT(G22),SUM(G22),\"\")","v":2985},{"$f":"+IF(COUNT(H22:H24),ROUND(SUM(H22:H24),2),\"\")","v":2985},{"$f":"(IF(COUNT(H25,G25),IFERROR(ROUND(H25/G25*100,4),0),\"\"))","v":100},{"$f":"+IF(COUNT(J22:J24),ROUND(SUM(J22:J24),2),\"\")","v":2985},{"$f":"+IF(COUNT(K22:K24),ROUND(SUM(K22:K24),2),\"\")","v":0},100,0]
[null,null,null,null,"Total","Total",{"$f":"+IF(COUNT(G17,G21,G25),ROUND(SUM(G17,G21,G25),2),\"\")","v":3088537},{"$f":"+IF(COUNT(H17,H21,H25),ROUND(SUM(H17,H21,H25),2),\"\")","v":3088537},{"$f":"(IF(COUNT(H26,G26),IFERROR(ROUND(H26/G26*100,4),0),\"\"))","v":100},3088537,0,100,0]
[null,null,null,null,"Whether resolution is Pass or Not.",null,null,null,null,null,null,"Yes",null,null,null,null,null,"Whether resolution is passed"]
[null,null,null,null,"Disclosure of notes on resolution",null,null,null,null,null,null,null,null,null,null,null,null,"Disclosure of notes on voting resolution"]
[]
[null,null,null,null,"* this fields are optional"]
[null,null,null,null,"Details of Invalid Votes"]
[null,null,null,null,"Category",null,"No. of Votes"]
[null,null,null,null,"Promoter and Promoter Group"]
[null,null,null,null,"Public Insitutions"]
[null,null,null,null,"Public - Non Insitutions"]

{"sheet":"Taxonomy","index":10,"n_rows":132,"n_cols":5,"rows_kept":132,"cut":false,"hidden":true,"merged":[]}
["element","label","type","periodType","validation"]
["General Information"]
["ScripCode","Scrip code","in-bse-voting-types:ScripCode","duration","This is a mandatory field. Should be valid SCRIP CODE  as per BSE Scrip Code Format. "]
["Symbol","NSE Symbol","xbrli:stringItemType","duration"]
["MSEISymbol","MSEI Symbol","xbrli:stringItemType","duration"]
["ISIN","ISIN","in-bse-voting-types:ISIN","duration"]
["NameOfTheCompany","Name of the company","xbrli:stringItemType","duration"]
["TypeOfMeeting","Type of meeting","in-bse-voting-types:TypeOfMeeting","duration","This is a mandatory field. Drop down Options \"AGM\" or \"EGM\" or \"Postal Ballot\" or \"Court Convened Meeting\" . If you select \"Postal Ballot\" then 'No. of shareholders present in the meeting either in person or through proxy' and 'No. of shareholders attended the meeting through video conferencing' are not mandatory."]
["DateOfMeeting","Date of the meeting / Date of declaration of results (in case of Postal Ballot)","xbrli:dateItemType","instant"]
["StartTimeOfTheMeeting","Start time of the meeting","xbrli:stringItemType","instant","This is not mandatory field. if you enter meeting start time then meeting end time is mandatory and vice versa. Time format is  \"HH:MM AM/PM\" "]
["EndTimeOfTheMeeting","End time of the meeting","xbrli:stringItemType","instant","This is not mandatory field. if you enter meeting end time then meeting start time is mandatory and vice versa. Time format is  \"HH:MM AM/PM\" "]
["Scrutinizer Details"]
["NameOfTheScrutinizer","Name of the Scrutinizer","xbrli:stringItemType","duration","This is mandatory field. Please eneter Name of the Scrutinizer."]
["NameOfScrutinizerFirm","Firms Name","xbrli:stringItemType","duration"]
["QualificationOfTheScrutinizer","Qualification","in-bse-voting-types:Qualification","duration","Please select value from the drop-down."]
["MembershipNumberOfTheScrutinizer","Membership Number","xbrli:stringItemType","duration","This is mandatory field for CA and CS."]
["DateOfBoardMeetingInWhichAppointed","Date of Board Meeting in which appointed","xbrli:dateItemType","instant","This is mandatory field. Please enter Date of Board Meeting in which appointed in dd-MM-yyyy format."]
["DateOfIssuanceOfReportToTheCompany","Date of Issuance of Report to the company","xbrli:dateItemType","instant","This is mandatory field. Please enter Date of Issuance of Report to the company in dd-Mm-yyyy format."]
["Voting Results"]
["DateOfRecord",{"$f":"'Voting Results'!R7","v":"Date of record"},"xbrli:dateItemType","instant"]
["TotalNumberOfShareholdersOnRecordDate",{"$f":"'Voting Results'!R8","v":"Total number of shareholders on record date"},"xbrli:decimalItemType","instant","This is a mandatory field. It should be greater than Zero."]
["NumberOfPromotersPresentInTheMeetingEitherInPersonOrThroughProxy","Number of promoters present in the meeting either in person or through proxy","xbrli:decimalItemType","instant","This is a mandatory field. It should be greater than Zero."]
["NumberOfPublicShareholdersPresentInTheMeetingEitherInPersonOrThroughProxy","Number of public shareholders present in the meeting either in person or through proxy","xbrli:decimalItemType","instant","This is a mandatory field. It should be greater than Zero."]
["NumberOfPromotersAttendedTheMeetingThroughVideoConferencing","Number of promoters attended the meeting through video conferencing","xbrli:decimalItemType","instant","This is a mandatory field. It should be greater than Zero."]
["NumberOfPublicShareholdersAttendedTheMeetingThroughVideoConferencing","Number of public shareholders attended the meeting through video conferencing","xbrli:decimalItemType","instant","This is a mandatory field. It should be greater than Zero."]
["NumberOfResolutionPassedInTheMeeting","Number of resolution passed in the meeting","xbrli:decimalItemType","instant","This is a mandatory field. It should be greater than Zero and Select between '1 to 20' resolution needed. "]
["DisclosureOfNotesOnVotingResultsExplanatoryTextBlock","Disclosure of notes on voting results","nonnum:textBlockItemType","duration"]
["Resolution"]
["TypeOfResolution","Type of resolution","in-bse-voting-types:TypeOfResolution","duration","This is a mandatory field. Drop down options \"Special\" or \"Ordinary\"."]
["WhetherPromoterOrPromoterGroupAreInterestedInTheAgendaOrResolution","Whether promoter or promoter group are interested in the agenda or resolution","xbrli:booleanItemType","duration","This is a mandatory field. Drop down options \"Yes\" or \"No\"."]
["DescriptionOfResolutionConsidered","Description of resolution considered","xbrli:stringItemType","duration","This is a mandatory field. Please enter in Description of resolution considered."]
["WhetherResolutionIsPassed","Whether resolution is passed","xbrli:booleanItemType","duration","This is a mandatory field. Drop down options \"Yes\" or \"No\"."]
["NumberOfSharesHeld","No. of shares held                 ","xbrli:sharesItemType","instant","This is not mandatory field. But if  you enter in digits then no. of polled, favour and against is mandatory."]
["NumberOfVotesPolled","No. of votes polled               ","xbrli:decimalItemType","instant","This is not mandatory field. But if  you enter value in no. of shares held then mandatory. It should not be greater then no. of shares held. "]
["PercentageOfVotesPolledOnOutstandingShares","% of Votes polled on outstanding shares ","num:percentItemType","instant","This is not mandatory. It should not be more then 100 (%) percentage."]
["NumberOfVotesInFavour","No. of votes – in favour","xbrli:decimalItemType","instant","This is not mandatory field. But if  you enter value in no. of polled then mandatory. It should not be greater then or equal to no. of polled."]
["NumberOfVotesAgainst","No. of votes – against","xbrli:decimalItemType","instant","This is not mandatory field. But if  you enter value in no. of polled then mandatory. It should not be greater then or equal to no. of polled."]
["PercentageOfVotesInFavourOnVotesPolled","% of votes in favour on votes polled ","num:percentItemType","instant","This is not mandatory. It should not be more then 100 (%) percentage."]
["PercentageOfVotesAgainstOnVotesPolled","% of Votes against on votes polled ","num:percentItemType","instant","This is not mandatory. It should not be more then 100 (%) percentage."]
["DisclosureOfNotesOnResolutionExplantoryTextBlock","Disclosure of notes on voting resolution","nonnum:textBlockItemType","duration"]
["InvalidVotesPromoterAndPromoterGroup","Promoter and Promoter Group","xbrli:decimalItemType","instant","This is optional field. If there are no of shares held for Promoter and Promoter Group then and then this field having value otherwise leave it blank and total number of invalid votes shall not be greater than total no.of shares held."]
["InvalidVotesPublicInstitutions","Public Insitutions","xbrli:decimalItemType","instant","This is optional field. If there are no of shares held for Public Insitutions then and then this field having value otherwise leave it blank and total number of invalid votes shall not be greater than total no.of shares held."]
["InvalidVotesNonInstitutions","Public - Non Insitutions","xbrli:decimalItemType","instant","This is optional field. If there are no of shares held for Public - Non Insitutions then and then this field having value otherwise leave it blank and total number of invalid votes shall not be greater than total no.of shares held."]
[null,"Resolution required: (Ordinary / Special)",null,null,"This is a mandatory field. Drop down option \"Special\" or \"Ordinary\"."]
[null,"Whether promoter/promoter group are interested in the agenda/resolution?",null,null,"This is a mandatory field. Drop down option \"Yes\" or \"No\"."]
[null,"Description of resolution considered",null,null,"This is a mandatory field. Please enter in Description of resolution considered."]
[null,"Whether resolution is Pass or Not.",null,null,"This is a mandatory field. Drop down option \"Yes\" or \"No\"."]
[null,"$G$14",null,null,"This is not mandatory field. If you enter digits then all Promoter and Promoter Group is mandatory."]
[null,"$G$17"]
[null,"$H$14",null,null,"This is mandatory field. It should not be greater then 'no of shared held' and sum of No. of votes – in favour, No. of votes – against and Invalid Votes."]
[null,"$H$15",null,null,"This is mandatory field. It should not be greater then 'no of shared held' and sum of No. of votes – in favour, No. of votes – against and Invalid Votes."]
[null,"$H$16",null,null,"This is mandatory field. It should not be greater then 'no of shared held' and sum of No. of votes – in favour, No. of votes – against and Invalid Votes."]
[null,"$H$17",null,null,"This is mandatory field. It should not be greater then 'no of shared held' and sum of No. of votes – in favour, No. of votes – against and Invalid Votes."]
[null,"$I$14",null,null,"This is mandatory field. It should not be more then 100(%) percentage."]
[null,"$I$15",null,null,"This is mandatory field. It should not be more then 100(%) percentage."]
[null,"$I$16",null,null,"This is mandatory field. It should not be more then 100(%) percentage."]
[null,"$I$17",null,null,"This is mandatory field. It should not be more then 100(%) percentage."]
[null,"$J$14"]
[null,"$J$15"]
[null,"$J$16"]
[null,"$J$17"]
[null,"$K$14"]
[null,"$K$15"]
[null,"$K$16"]
[null,"$K$17"]
[null,"$L$14",null,null,"This is mandatory field. It should not be more then 100(%) percentage."]
[null,"$L$15",null,null,"This is mandatory field. It should not be more then 100(%) percentage."]
[null,"$L$16",null,null,"This is mandatory field. It should not be more then 100(%) percentage."]
[null,"$L$17",null,null,"This is mandatory field. It should not be more then 100(%) percentage."]
[null,"$M$14",null,null,"This is mandatory field. It should not be more then 100(%) percentage."]
[null,"$M$15",null,null,"This is mandatory field. It should not be more then 100(%) percentage."]
[null,"$M$16",null,null,"This is mandatory field. It should not be more then 100(%) percentage."]
[null,"$M$17",null,null,"This is mandatory field. It should not be more then 100(%) percentage."]
[null,"$G$18",null,null,"This is not mandatory field. If you enter digits then all Promoter and Promoter Group is mandatory."]
[null,"$G$21"]
[null,"$H$18",null,null,"This is mandatory field. It should not be greater then 'no of shared held' and sum of No. of votes – in favour, No. of votes – against and Invalid Votes."]
[null,"$H$19",null,null,"This is mandatory field. It should not be greater then 'no of shared held' and sum of No. of votes – in favour, No. of votes – against and Invalid Votes."]
[null,"$H$20",null,null,"This is mandatory field. It should not be greater then 'no of shared held' and sum of No. of votes – in favour, No. of votes – against and Invalid Votes."]
[null,"$H$21",null,null,"This is mandatory field. It should not be greater then 'no of shared held' and sum of No. of votes – in favour, No. of votes – against and Invalid Votes."]
[null,"$I$18",null,null,"This is mandatory field. It should not be more then 100(%) percentage."]
[null,"$I$19",null,null,"This is mandatory field. It should not be more then 100(%) percentage."]
[null,"$I$20",null,null,"This is mandatory field. It should not be more then 100(%) percentage."]
[null,"$I$21",null,null,"This is mandatory field. It should not be more then 100(%) percentage."]
[null,"$J$18"]
[null,"$J$19"]
[null,"$J$20"]
[null,"$J$21"]
[null,"$K$18"]
[null,"$K$19"]
[null,"$K$20"]
[null,"$K$21"]
[null,"$L$18",null,null,"This is mandatory field. It should not be more then 100(%) percentage."]
[null,"$L$19",null,null,"This is mandatory field. It should not be more then 100(%) percentage."]
[null,"$L$20",null,null,"This is mandatory field. It should not be more then 100(%) percentage."]
[null,"$L$21",null,null,"This is mandatory field. It should not be more then 100(%) percentage."]
[null,"$M$18",null,null,"This is mandatory field. It should not be more then 100(%) percentage."]
[null,"$M$19",null,null,"This is mandatory field. It should not be more then 100(%) percentage."]
[null,"$M$20",null,null,"This is mandatory field. It should not be more then 100(%) percentage."]
[null,"$M$21",null,null,"This is mandatory field. It should not be more then 100(%) percentage."]
[null,"$G$22",null,null,"This is not mandatory field. If you enter digits then all Promoter and Promoter Group is mandatory."]
[null,"$G$25"]
[null,"$H$22",null,null,"This is mandatory field. It should not be greater then 'no of shared held' and sum of No. of votes – in favour, No. of votes – against and Invalid Votes."]
[null,"$H$23",null,null,"This is mandatory field. It should not be greater then 'no of shared held' and sum of No. of votes – in favour, No. of votes – against and Invalid Votes."]
[null,"$H$24",null,null,"This is mandatory field. It should not be greater then 'no of shared held' and sum of No. of votes – in favour, No. of votes – against and Invalid Votes."]
[null,"$H$25",null,null,"This is mandatory field. It should not be greater then 'no of shared held' and sum of No. of votes – in favour, No. of votes – against and Invalid Votes."]
[null,"$I$22",null,null,"This is mandatory field. It should not be more then 100(%) percentage."]
[null,"$I$23",null,null,"This is mandatory field. It should not be more then 100(%) percentage."]
[null,"$I$24",null,null,"This is mandatory field. It should not be more then 100(%) percentage."]
[null,"$I$25",null,null,"This is mandatory field. It should not be more then 100(%) percentage."]
[null,"$J$22"]
[null,"$J$23"]
[null,"$J$24"]
[null,"$J$25"]
[null,"$K$22"]
[null,"$K$23"]
[null,"$K$24"]
[null,"$K$25"]
[null,"$L$22",null,null,"This is mandatory field. It should not be more then 100(%) percentage."]
[null,"$L$23",null,null,"This is mandatory field. It should not be more then 100(%) percentage."]
[null,"$L$24",null,null,"This is mandatory field. It should not be more then 100(%) percentage."]
[null,"$L$25",null,null,"This is mandatory field. It should not be more then 100(%) percentage."]
[null,"$M$22",null,null,"This is mandatory field. It should not be more then 100(%) percentage."]
[null,"$M$23",null,null,"This is mandatory field. It should not be more then 100(%) percentage."]
[null,"$M$24",null,null,"This is mandatory field. It should not be more then 100(%) percentage."]
[null,"$M$25",null,null,"This is mandatory field. It should not be more then 100(%) percentage."]
[null,"$G$26",null,null,"This is mandatory fields. At list One Group "]
[null,"$H$26",null,null,"Any one Category( 'Promoter and Promoter Group','Public- Institutions', or 'Public-Non Institutions') is Mandatory."]
[null,"$I$26",null,null,"Any one Category( 'Promoter and Promoter Group','Public- Institutions', or 'Public-Non Institutions') is Mandatory."]
[null,"$J$26",null,null,"Any one Category( 'Promoter and Promoter Group','Public- Institutions', or 'Public-Non Institutions') is Mandatory."]
[null,"$K$26",null,null,"Any one Category( 'Promoter and Promoter Group','Public- Institutions', or 'Public-Non Institutions') is Mandatory."]
[null,"$L$26",null,null,"Any one Category( 'Promoter and Promoter Group','Public- Institutions', or 'Public-Non Institutions') is Mandatory."]
[null,"$M$26",null,null,"Any one Category( 'Promoter and Promoter Group','Public- Institutions', or 'Public-Non Institutions') is Mandatory."]

{"sheet":"TextBlock","index":11,"n_rows":1,"n_cols":5,"rows_kept":1,"cut":false,"hidden":true,"merged":[]}
[null,null,null,null,2]